fUSD/lending_fUSD_20251204
["ID","MTS","AMOUNT","RATE_DAILY","PERIOD"]
[396230974,1764849043144,-500.0,0.00016986,2]
[396230975,1764849043154,-611.46471332,0.00016987,2]
[396230976,1764849043164,-500.0,0.00016987,2]
[396230977,1764849043173,-500.0,0.0001699,2]
[396230978,1764849043182,-150.0,0.0001699,2]
[396230979,1764849043192,-150.0,0.0001699,2]
[396230980,1764849043202,-282.96061831,0.0001699,2]
[396230981,1764849043211,-150.0,0.0001699,2]
[396230982,1764849043224,-150.0,0.0001699,2]
[396230983,1764849043233,-150.86420125,0.0001699,2]
[396230984,1764849043243,-150.0,0.0001699,2]
[396230985,1764849043252,-500.0,0.0001699,2]
[396230986,1764849043261,-500.0,0.0001699,2]
[396230987,1764849043271,-150.0,0.0001699,2]
[396230988,1764849043281,-150.0,0.0001699,2]
[396230989,1764849043291,-500.0,0.0001699,2]
[396230990,1764849043303,-150.0,0.0001699,2]
[396230991,1764849043313,-500.0,0.0001699,2]
[396230992,1764849043323,-500.0,0.0001699,2]
[396230993,1764849043333,-150.0,0.0001699,2]
[396230994,1764849043343,-500.0,0.0001699,2]
[396230995,1764849043353,-150.0,0.0001699,2]
[396230996,1764849043363,-500.0,0.0001699,2]
[396230997,1764849043373,-150.0,0.0001699,2]
[396230998,1764849043383,-150.0,0.0001699,2]
[396230999,1764849043393,-500.0,0.0001699,2]
[396231000,1764849043403,-500.0,0.0001699,2]
[396231001,1764849043413,-150.0,0.0001699,2]
[396231002,1764849043422,-207.9515902,0.0001699,2]
[396231003,1764849043433,-150.0,0.0001699,2]
[396231004,1764849043443,-199.73901061,0.0001699,2]
[396231005,1764849043453,-500.0,0.00016997,2]
[396231006,1764849043464,-500.0,0.00016997,2]
[396231007,1764849043474,-517.06794092,0.00016997,2]
[396231008,1764849043485,-3417.7201531,0.00016998,2]
[396231009,1764849043493,-339058.6209238,0.00016998,2]
[396231010,1764849043504,-17131.8678763,0.00016998,2]
[396231011,1764849043514,-16166.6420773,0.00016998,2]
[396231012,1764849043524,-152.857964,0.00016998,2]
[396231013,1764849043534,-59236.4291735,0.00016998,2]
[396231014,1764849043544,-300.0,0.00016999,2]
[396231015,1764849043553,-2000.0,0.00016999,2]
[396231016,1764849043564,-500.0,0.00016999,2]
[396231017,1764849043574,-500.0,0.00016999,2]
[396231018,1764849043585,-500.0,0.00016999,2]
[396231019,1764849043596,-500.0,0.00016999,2]
[396231020,1764849043608,-367.11961321,0.00016999,2]
[396231021,1764849043618,-410.37691776,0.00016999,2]
[396231022,1764849043627,-300.0,0.00016999,2]
[396231023,1764849043638,-300.0,0.00016999,2]
[396231024,1764849043648,-578.77667957,0.00016999,2]
[396231025,1764849043658,-1258345.89579933,0.00017,2]
[396231026,1764849043667,-1106661.35468741,0.00017,2]
[396231031,1764849046255,-582.34175999,0.000169,2]
[396231039,1764849282912,150.0,0.00016084,120]
[396231180,1764849907486,156.0,0.00022,30]
[396231181,1764849907699,156.0,0.00022,30]
[396231182,1764849908226,156.0,0.00022,30]
[396231183,1764849908305,156.0,0.00022,30]
[396231184,1764849908417,156.0,0.00022,30]
[396231185,1764849908604,156.0,0.00022,30]
[396231186,1764849908828,156.0,0.00022,30]
[396231187,1764849909057,156.0,0.00022,30]
[396231188,1764849909891,160.0,0.00022,30]
[396231189,1764849910103,159.0,0.00022,30]
[396231190,1764849910368,159.0,0.00022,30]
[396231191,1764849910587,159.0,0.00022,30]
[396231200,1764850003111,157.77,7.505e-05,2]
[396231205,1764850145029,285.53598376,0.00016999,30]
[396231213,1764850208866,172.0,0.00021318,120]
[396231219,1764850210119,172.0,0.00022384,120]
[396231220,1764850211371,172.0,0.00023503,120]
[396231221,1764850212650,172.0,0.00024678,120]
[396231223,1764850232333,-166.66,0.00014315,2]
[396231224,1764850232343,-300.0,0.00014466,2]
[396231225,1764850232353,-166.66,0.00014616,2]
[396231226,1764850232362,-1200.0,0.0001486,2]
[396231227,1764850232372,-300.0,0.0001486,2]
[396231228,1764850232381,-1000.0,0.00014861,2]
[396231229,1764850232390,-500.0,0.00014861,2]
[396231230,1764850232400,-500.0,0.00014861,2]
[396231231,1764850232409,-500.0,0.00014861,2]
[396231232,1764850232418,-500.0,0.00014861,2]
[396231233,1764850232427,-500.0,0.00014861,2]
[396231234,1764850232436,-166.66,0.00014918,2]
[396231235,1764850232446,-195.0,0.00014989,2]
[396231236,1764850232455,-250.0,0.00015009,2]
[396231237,1764850232464,-167.56,0.00015009,2]
[396231238,1764850232473,-2474.08,0.00015009,2]
[396231239,1764850232482,-166.66,0.00015219,2]
[396231240,1764850232491,-1062.498,0.00015254,2]
[396231241,1764850232500,-198.96894634,0.00015254,2]
[396231242,1764850232510,-275.52043561,0.00015512,2]
[396231243,1764850232521,-2424.08798639,0.00015512,2]
[396231244,1764850238257,-955.88436296,0.00015512,2]
[396231245,1764850238268,-9398.27742368,0.00015512,2]
[396231246,1764850238277,-181.41208312,0.00015512,2]
[396231247,1764850238286,-1047.5397044,0.00015512,2]
[396231248,1764850238321,-600.0,0.00015512,2]
[396231249,1764850238471,-651.22511924,0.00015512,2]
[396231250,1764850238483,-520.8490333,0.00015512,2]
[396231253,1764850240421,-300.0,0.00015009,2]
[396231254,1764850240529,-3257.4,0.00015009,2]
[396231255,1764850240539,-4007.11126171,0.00015512,2]
[396231256,1764850240548,-166.66,0.00015521,2]
[396231257,1764850240558,-1287.56,0.00015556,2]
[396231258,1764850240568,-1458.41,0.00015556,2]
[396231259,1764850240577,-9999.99,0.00015556,2]
[396231260,1764850240587,-9999.99,0.00015556,2]
[396231261,1764850240596,-15799.89,0.00015556,2]
[396231262,1764850240606,-22843.75,0.00015556,2]
[396231263,1764850240615,-150.99,0.00015556,2]
[396231264,1764850240625,-299.99,0.00015556,2]
[396231265,1764850240635,-9999.99,0.00015556,2]
[396231266,1764850240644,-5849.36,0.00015556,2]
[396231267,1764850240653,-150.99,0.00015556,2]
[396231268,1764850240663,-999.99,0.00015556,2]
[396231269,1764850240672,-200.0,0.00015556,2]
[396231270,1764850240682,-500.0,0.00015556,2]
[396231272,1764850240692,-500.0,0.00015556,2]
[396231273,1764850240701,-500.0,0.00015556,2]
[396231274,1764850240711,-500.0,0.00015556,2]
[396231275,1764850240725,-500.0,0.00015556,2]
[396231276,1764850240734,-500.0,0.00015556,2]
[396231277,1764850240744,-500.0,0.00015556,2]
[396231278,1764850240753,-500.0,0.00015556,2]
[396231279,1764850240764,-500.0,0.00015556,2]
[396231280,1764850240774,-509.51129037,0.00015556,2]
[396231281,1764850240783,-500.0,0.00015556,2]
[396231282,1764850240793,-500.0,0.00015556,2]
[396231283,1764850240803,-518.5,0.00015556,2]
[396231284,1764850240813,-151.0,0.00015556,2]
[396231285,1764850240822,-151.0,0.00015556,2]
[396231286,1764850240831,-151.0,0.00015556,2]
[396231287,1764850240842,-151.0,0.00015556,2]
[396231288,1764850240851,-151.0,0.00015556,2]
[396231289,1764850240861,-151.0,0.00015556,2]
[396231290,1764850240870,-151.0,0.00015556,2]
[396231291,1764850240880,-151.0,0.00015556,2]
[396231292,1764850240889,-151.0,0.00015556,2]
[396231293,1764850240898,-151.0,0.00015556,2]
[396231294,1764850240907,-151.0,0.00015556,2]
[396231295,1764850240917,-1229.22194654,0.00015565,5]
[396231296,1764850240926,-611.75031463,0.00015565,2]
[396231297,1764850240936,-506.71814393,0.00015565,2]
[396231298,1764850240945,-507.69829592,0.00015565,2]
[396231299,1764850240954,-3751.00742922,0.00015565,2]
[396231300,1764850240964,-509.18007663,0.00015565,2]
[396231301,1764850240973,-500.0,0.00015565,2]
[396231302,1764850240982,-500.0,0.00015565,2]
[396231303,1764850240992,-500.0,0.00015565,2]
[396231304,1764850241001,-500.0,0.00015565,2]
[396231305,1764850241010,-500.0,0.00015565,2]
[396231307,1764850241020,-500.0,0.00015565,2]
[396231309,1764850241029,-468.9517815,0.00015565,2]
[396231311,1764850241038,-500.0,0.00015565,2]
[396231312,1764850241047,-521.60476849,0.00015565,2]
[396231313,1764850241056,-507.17450848,0.00015565,2]
[396231314,1764850241065,-500.0,0.00015565,2]
[396231315,1764850241075,-506.24410093,0.00015565,2]
[396231316,1764850241084,-500.0,0.00015565,2]
[396231317,1764850241093,-500.0,0.00015565,2]
[396231318,1764850241102,-516.18265431,0.00015565,2]
[396231319,1764850241112,-500.0,0.00015565,2]
[396231320,1764850241122,-500.0,0.00015565,2]
[396231321,1764850241132,-611.46471332,0.00015565,2]
[396231322,1764850241141,-500.0,0.00015565,2]
[396231323,1764850241150,-500.0,0.00015565,2]
[396231324,1764850241159,-537.6845,0.00015611,2]
[396231325,1764850241168,-557.5788265,0.00015666,2]
[396231326,1764850241177,-441.38890768,0.00015721,2]
[396231327,1764850241187,-300.0,0.00015747,2]
[396231328,1764850241196,-500.0,0.00015765,2]
[396231329,1764850241206,-500.0,0.00015765,2]
[396231330,1764850241216,-501.89145064,0.00015765,2]
[396231331,1764850241225,-500.0,0.00015765,2]
[396231332,1764850241234,-500.0,0.00015765,2]
[396231333,1764850241243,-500.0,0.00015765,2]
[396231334,1764850241252,-166.66,0.00015822,2]
[396231335,1764850241261,-1287.56,0.0001583,2]
[396231337,1764850241271,-167.56,0.00015843,2]
[396231338,1764850241281,-510.70545985,0.00015864,2]
[396231339,1764850241291,-300.93445897,0.00015873,2]
[396231340,1764850241299,-501.4245699,0.00015873,2]
[396231341,1764850241309,-162.76159357,0.00015873,2]
[396231342,1764850241319,-500.0,0.00015873,2]
[396231343,1764850241328,-429.24017763,0.00015873,2]
[396231344,1764850241337,-500.0,0.00015873,2]
[396231345,1764850241347,-500.0,0.00015873,2]
[396231346,1764850241355,-336.54278996,0.000159,2]
[396231347,1764850241364,-999.0,0.00015907,3]
[396231348,1764850241373,-287.77,0.00016029,2]
[396231349,1764850241383,-150.0,0.00016084,2]
[396231350,1764850241393,-1287.56,0.00016104,2]
[396231351,1764850241403,-500.0,0.00016148,2]
[396231352,1764850241412,-500.0,0.00016148,2]
[396231353,1764850241421,-500.0,0.00016148,2]
[396231354,1764850241431,-463.0,0.00016148,2]
[396231355,1764850241440,-574.12855637,0.00016148,2]
[396231356,1764850241450,-1469.71413574,0.00016148,2]
[396231357,1764850241459,-500.0,0.00016148,2]
[396231358,1764850241468,-2000.0,0.00016148,2]
[396231359,1764850241477,-500.0,0.00016148,2]
[396231360,1764850241486,-2000.0,0.00016148,2]
[396231361,1764850241496,-500.0,0.00016148,2]
[396231362,1764850241505,-500.0,0.00016148,2]
[396231363,1764850241514,-2000.0,0.00016148,2]
[396231364,1764850241524,-500.0,0.00016148,2]
[396231365,1764850241533,-500.0,0.00016148,2]
[396231366,1764850241542,-500.0,0.00016148,2]
[396231367,1764850241551,-2000.0,0.00016148,2]
[396231368,1764850241560,-500.0,0.00016148,2]
[396231369,1764850241568,-500.0,0.00016148,2]
[396231370,1764850241577,-2000.0,0.00016148,2]
[396231371,1764850241586,-500.0,0.00016148,2]
[396231372,1764850241595,-2000.0,0.00016148,2]
[396231373,1764850241603,-500.0,0.00016148,2]
[396231374,1764850241612,-500.0,0.00016148,2]
[396231375,1764850241621,-2000.0,0.00016148,2]
[396231376,1764850241630,-500.0,0.00016148,2]
[396231377,1764850241639,-500.0,0.00016148,2]
[396231378,1764850241648,-2000.0,0.00016148,2]
[396231379,1764850241657,-500.0,0.00016148,2]
[396231380,1764850241666,-500.0,0.00016148,2]
[396231381,1764850241675,-2000.0,0.00016148,2]
[396231382,1764850241684,-500.0,0.00016148,2]
[396231383,1764850241693,-500.0,0.00016148,2]
[396231384,1764850241702,-2000.0,0.00016148,2]
[396231385,1764850241711,-500.0,0.00016148,2]
[396231386,1764850241724,-2000.0,0.00016148,2]
[396231387,1764850241733,-335.66906055,0.00016148,2]
[396231388,1764850241742,-1000.0,0.00016148,2]
[396231389,1764850241751,-1000.0,0.00016148,2]
[396231390,1764850241762,-2340.0,0.00016148,2]
[396231391,1764850241771,-1000.0,0.00016148,2]
[396231392,1764850241780,-1000.0,0.00016148,2]
[396231393,1764850241788,-1000.0,0.00016148,2]
[396231394,1764850241802,-1000.0,0.00016148,2]
[396231395,1764850241812,-578.20924308,0.00016148,2]
[396231396,1764850241821,-1000.0,0.00016148,2]
[396231397,1764850241831,-628.35238982,0.00016148,2]
[396231398,1764850241842,-1000.0,0.00016148,2]
[396231399,1764850241851,-1000.0,0.00016148,2]
[396231400,1764850241860,-1000.0,0.00016148,2]
[396231401,1764850241869,-1000.0,0.00016148,2]
[396231402,1764850241879,-250.0,0.00016148,2]
[396231403,1764850241888,-2173.27178046,0.00016148,2]
[396231404,1764850241898,-250.0,0.00016148,2]
[396231405,1764850241907,-250.0,0.00016148,2]
[396231406,1764850241917,-250.0,0.00016148,2]
[396231407,1764850241927,-250.0,0.00016148,2]
[396231408,1764850241936,-250.0,0.00016148,2]
[396231409,1764850241945,-250.0,0.00016148,2]
[396231410,1764850241955,-311.1,0.00016148,2]
[396231411,1764850241964,-250.0,0.00016148,2]
[396231412,1764850241974,-250.0,0.00016148,2]
[396231413,1764850241984,-250.0,0.00016148,2]
[396231414,1764850241993,-151.0,0.00016148,2]
[396231415,1764850242003,-151.0,0.00016148,2]
[396231416,1764850242012,-250.0,0.00016148,2]
[396231417,1764850242021,-151.0,0.00016148,2]
[396231418,1764850242031,-250.0,0.00016148,2]
[396231419,1764850242040,-151.0,0.00016148,2]
[396231420,1764850242050,-500.0,0.00016148,2]
[396231421,1764850242060,-500.0,0.00016148,2]
[396231422,1764850242069,-500.0,0.00016148,2]
[396231423,1764850242079,-500.0,0.00016148,2]
[396231424,1764850242089,-500.0,0.00016148,2]
[396231425,1764850242099,-500.0,0.00016148,2]
[396231426,1764850242109,-383.26785685,0.00016148,2]
[396231427,1764850242119,-277.35679052,0.00016148,2]
[396231428,1764850242129,-300.0,0.00016148,2]
[396231429,1764850242139,-636.68,0.00016222,2]
[396231430,1764850242150,-195.0,0.0001628,2]
[396231431,1764850242160,-659.0,0.00016346,2]
[396231432,1764850242171,-190.56,0.00016374,2]
[396231433,1764850242181,-1287.56,0.00016378,2]
[396231434,1764850242192,-830.0,0.00016407,2]
[396231435,1764850242202,-748.0,0.00016411,2]
[396231436,1764850242212,-500.0,0.00016421,2]
[396231437,1764850242221,-500.0,0.00016421,2]
[396231438,1764850242230,-410.37691776,0.00016437,2]
[396231439,1764850242240,-621.64,0.0001647,2]
[396231440,1764850242250,-150.0,0.00016521,2]
[396231441,1764850242259,-150.0,0.00016521,2]
[396231442,1764850242268,-150.16098093,0.00016521,2]
[396231443,1764850242277,-150.00000001,0.00016521,2]
[396231444,1764850242287,-150.1642394,0.00016521,2]
[396231445,1764850242296,-150.0,0.00016521,2]
[396231446,1764850242305,-12778.249773,0.00016555,2]
[396231447,1764850242314,-6826.7251186,0.00016555,2]
[396231448,1764850242324,-1384.0,0.000166,2]
[396231449,1764850242334,-206.55,0.00016606,2]
[396231450,1764850242343,-1287.56,0.00016652,2]
[396231451,1764850242352,-167.56,0.00016677,2]
[396231452,1764850242362,-595.37131296,0.00016696,2]
[396231453,1764850242372,-2340.0,0.00016696,2]
[396231454,1764850242381,-151.0,0.00016696,2]
[396231455,1764850242392,-151.0,0.00016696,2]
[396231456,1764850242402,-1000.0,0.00016718,2]
[396231457,1764850242411,-913.03063142,0.00016731,2]
[396231458,1764850242421,-500.0,0.0001683,2]
[396231459,1764850242432,-12024.0,0.00016899,2]
[396231460,1764850242442,-1055.17132752,0.000169,2]
[396231461,1764850242452,-181.41208312,0.000169,2]
[396231462,1764850242462,-1006.0,0.000169,2]
[396231463,1764850242472,-210.94522326,0.000169,2]
[396231464,1764850242482,-9999.99,0.00016922,2]
[396231465,1764850242492,-1287.56,0.00016926,2]
[396231466,1764850242501,-598.94895177,0.00016973,2]
[396231467,1764850242511,-500.0,0.00016973,2]
[396231468,1764850242520,-500.0,0.00016989,2]
[396231469,1764850242530,-315.59796836,0.0001699,2]
[396231470,1764850242540,-150.0,0.0001699,2]
[396231471,1764850242549,-150.0,0.0001699,2]
[396231472,1764850242559,-500.0,0.0001699,2]
[396231473,1764850242569,-500.0,0.0001699,2]
[396231474,1764850242579,-150.0,0.0001699,2]
[396231475,1764850242588,-500.0,0.0001699,2]
[396231476,1764850242598,-150.0,0.0001699,2]
[396231477,1764850242608,-501.0,0.0001699,2]
[396231478,1764850242618,-500.0,0.0001699,2]
[396231479,1764850242629,-150.0,0.0001699,2]
[396231480,1764850242639,-500.0,0.0001699,2]
[396231481,1764850242648,-500.0,0.0001699,2]
[396231482,1764850242659,-150.0,0.0001699,2]
[396231483,1764850242669,-500.0,0.0001699,2]
[396231484,1764850242678,-500.0,0.0001699,2]
[396231485,1764850242688,-150.0,0.0001699,2]
[396231486,1764850242698,-500.0,0.0001699,2]
[396231487,1764850242708,-154.08718564,0.0001699,2]
[396231488,1764850242721,-150.0,0.0001699,2]
[396231489,1764850242730,-500.0,0.0001699,2]
[396231490,1764850242740,-500.0,0.0001699,2]
[396231491,1764850242750,-500.0,0.0001699,2]
[396231492,1764850242760,-500.0,0.0001699,2]
[396231493,1764850242769,-500.0,0.0001699,2]
[396231494,1764850242778,-500.0,0.0001699,2]
[396231495,1764850242787,-500.0,0.0001699,2]
[396231496,1764850242799,-1773.0,0.0001699,2]
[396231497,1764850242808,-150.0,0.0001699,2]
[396231498,1764850242818,-199.73901061,0.0001699,2]
[396231499,1764850242827,-168.67451935,0.0001699,2]
[396231500,1764850242837,-500.0,0.0001699,2]
[396231502,1764850243008,-500.0,0.0001699,2]
[396231503,1764850243019,-500.0,0.0001699,2]
[396231504,1764850243029,-500.0,0.0001699,2]
[396231505,1764850243039,-150.0,0.0001699,2]
[396231506,1764850243049,-300.0,0.00016999,2]
[396231507,1764850243058,-500.0,0.00016999,2]
[396231508,1764850243068,-500.0,0.00016999,2]
[396231509,1764850243078,-500.0,0.00016999,2]
[396231510,1764850243087,-500.0,0.00016999,2]
[396231511,1764850243097,-500.0,0.00016999,2]
[396231513,1764850243107,-500.0,0.00016999,2]
[396231515,1764850243117,-367.11961321,0.00016999,2]
[396231517,1764850243126,-517.06794092,0.00016999,2]
[396231518,1764850243136,-305.96646881,0.00016999,2]
[396231519,1764850243146,-250.02039378,0.00016999,2]
[396231520,1764850243155,-175.86434141,0.00016999,2]
[396231521,1764850243165,-300.0,0.00016999,2]
[396231522,1764850243175,-500.0,0.00016999,2]
[396231523,1764850243184,-500.0,0.00016999,2]
[396231524,1764850243195,-500.0,0.00016999,2]
[396231525,1764850243206,-500.0,0.00016999,2]
[396231526,1764850243216,-500.0,0.00016999,2]
[396231527,1764850243225,-500.0,0.00016999,2]
[396231528,1764850243235,-417.08586028,0.00016999,2]
[396231529,1764850243245,-500.0,0.00016999,2]
[396231530,1764850243255,-500.0,0.00016999,2]
[396231531,1764850243264,-500.0,0.00016999,2]
[396231532,1764850243274,-500.0,0.00016999,2]
[396231533,1764850243283,-500.0,0.00016999,2]
[396231534,1764850243293,-500.0,0.00016999,2]
[396231535,1764850243302,-500.0,0.00016999,2]
[396231536,1764850243312,-500.0,0.00016999,2]
[396231537,1764850243321,-500.0,0.00016999,2]
[396231538,1764850243331,-500.0,0.00016999,2]
[396231539,1764850243341,-500.0,0.00016999,2]
[396231540,1764850243350,-500.0,0.00016999,2]
[396231541,1764850243359,-500.0,0.00016999,2]
[396231542,1764850243369,-500.0,0.00016999,2]
[396231543,1764850243378,-500.0,0.00016999,2]
[396231544,1764850243388,-500.0,0.00016999,2]
[396231545,1764850243397,-500.0,0.00016999,2]
[396231546,1764850243407,-500.0,0.00016999,2]
[396231547,1764850243421,-500.0,0.00016999,2]
[396231548,1764850243430,-500.0,0.00016999,2]
[396231549,1764850243440,-500.0,0.00016999,2]
[396231550,1764850243450,-500.0,0.00016999,2]
[396231551,1764850243459,-500.0,0.00016999,2]
[396231552,1764850243468,-500.0,0.00016999,2]
[396231553,1764850243478,-500.0,0.00016999,2]
[396231554,1764850243487,-500.0,0.00016999,2]
[396231555,1764850243497,-500.0,0.00016999,2]
[396231556,1764850243507,-500.0,0.00016999,2]
[396231557,1764850243520,-500.0,0.00016999,2]
[396231558,1764850243537,-500.0,0.00016999,2]
[396231559,1764850243547,-500.0,0.00016999,2]
[396231560,1764850243557,-500.0,0.00016999,2]
[396231561,1764850243567,-500.0,0.00016999,2]
[396231562,1764850243577,-500.0,0.00016999,2]
[396231563,1764850243586,-500.0,0.00016999,2]
[396231564,1764850243596,-500.0,0.00016999,2]
[396231565,1764850243605,-347.42407163,0.00016999,2]
[396231566,1764850243615,-500.0,0.00016999,2]
[396231567,1764850243624,-500.0,0.00016999,2]
[396231568,1764850243634,-500.0,0.00016999,2]
[396231569,1764850243643,-500.0,0.00016999,2]
[396231570,1764850243653,-500.0,0.00016999,2]
[396231571,1764850243662,-500.0,0.00016999,2]
[396231572,1764850243671,-500.0,0.00016999,2]
[396231573,1764850243681,-500.0,0.00016999,2]
[396231574,1764850243691,-500.0,0.00016999,2]
[396231575,1764850243700,-500.0,0.00016999,2]
[396231576,1764850243710,-500.0,0.00016999,2]
[396231577,1764850243725,-500.0,0.00016999,2]
[396231578,1764850243734,-1533852.83400392,0.00017,2]
[396231579,1764850243744,-151.0,0.00017,2]
[396231580,1764850243754,-502.5262314,0.00017,2]
[396231581,1764850243765,-151.0,0.00017,2]
[396231582,1764850243774,-154.05038013,0.00017,2]
[396231583,1764850243783,-2000.0,0.00017,2]
[396231584,1764850243794,-72695.1737742,0.00017,2]
[396231585,1764850243804,-266363.4471497,0.00017,2]
[396231586,1764850243813,-3255.6317906,0.00017,2]
[396231587,1764850243822,-2000.0,0.00017,2]
[396231588,1764850243832,-200.0,0.00017,2]
[396231589,1764850243841,-151.0,0.00017,2]
[396231590,1764850243850,-781.91515005,0.00017,2]
[396231591,1764850243859,-780.257,0.00017,2]
[396231593,1764850243868,-1000.0,0.00017,2]
[396231595,1764850243878,-1000.0,0.00017,2]
[396231596,1764850243887,-500.0,0.00017,2]
[396231597,1764850243896,-150.14919135,0.00017,2]
[396231598,1764850243906,-150.0,0.00017,2]
[396231599,1764850243915,-150.0,0.00017,2]
[396231600,1764850243925,-500.0,0.00017,2]
[396231601,1764850243934,-152.22695775,0.00017,2]
[396231602,1764850243943,-150.0,0.00017,2]
[396231603,1764850243953,-150.0,0.00017,2]
[396231604,1764850243962,-500.0,0.00017,2]
[396231605,1764850243972,-152.61773992,0.00017,2]
[396231606,1764850243982,-500.0,0.00017,2]
[396231607,1764850243991,-154.70817097,0.00017,2]
[396231608,1764850244001,-150.0,0.00017,2]
[396231609,1764850244010,-157.31329574,0.00017,2]
[396231610,1764850244019,-150.0,0.00017,2]
[396231611,1764850244029,-150.0,0.00017,2]
[396231612,1764850244038,-150.0,0.00017,2]
[396231613,1764850244048,-150.0,0.00017,2]
[396231614,1764850244057,-152.857964,0.00017,2]
[396231615,1764850244066,-200.0,0.00017,2]
[396231616,1764850244076,-76368.2970497,0.00017,2]
[396231617,1764850244085,-250.0,0.00017,2]
[396231618,1764850244094,-932.7547121,0.00017,2]
[396231619,1764850244103,-200.0,0.00017,2]
[396231620,1764850244113,-297.64644087,0.00017,2]
[396231621,1764850244122,-761.023688,0.00017,2]
[396231622,1764850244131,-761.023688,0.00017,2]
[396231623,1764850244140,-761.023688,0.00017,2]
[396231624,1764850244149,-3466.1760021,0.00017,2]
[396231625,1764850244158,-761.023688,0.00017,2]
[396231626,1764850244167,-1008.29537366,0.00017,2]
[396231627,1764850244175,-199.539,0.00017049,2]
[396231628,1764850244184,-318.211,0.00017049,2]
[396231629,1764850244193,-6510.0,0.00017049,2]
[396231630,1764850244203,-4706.0,0.00017049,2]
[396231631,1764850244213,-562.0,0.00017049,2]
[396231632,1764850244222,-166.66,0.00017072,2]
[396231633,1764850244231,-5524.0,0.000171,3]
[396231634,1764850244241,-150.0,0.00017127,2]
[396231635,1764850244251,-500.0,0.00017127,2]
[396231636,1764850244260,-500.0,0.00017127,2]
[396231637,1764850244270,-554.69767392,0.00017127,2]
[396231638,1764850244280,-501.0,0.00017127,2]
[396231639,1764850244290,-500.0,0.00017127,2]
[396231640,1764850244299,-150.0,0.00017127,2]
[396231641,1764850244309,-500.0,0.00017127,2]
[396231642,1764850244319,-500.0,0.00017127,2]
[396231643,1764850244329,-152.40128205,0.00017127,2]
[396231644,1764850244339,-500.0,0.00017127,2]
[396231645,1764850244348,-602.33281575,0.00017127,2]
[396231646,1764850244357,-153.27598612,0.00017127,2]
[396231647,1764850244366,-500.0,0.00017127,2]
[396231648,1764850244375,-150.0,0.00017127,2]
[396231649,1764850244385,-500.0,0.00017127,2]
[396231650,1764850244394,-500.0,0.00017127,2]
[396231651,1764850244403,-500.0,0.00017127,2]
[396231652,1764850244413,-500.0,0.00017127,2]
[396231653,1764850244422,-500.0,0.00017127,2]
[396231654,1764850244431,-500.0,0.00017127,2]
[396231655,1764850244441,-541.50339191,0.00017127,2]
[396231656,1764850244450,-1773.0,0.00017127,2]
[396231657,1764850244459,-150.0,0.00017127,2]
[396231658,1764850244469,-500.0,0.00017127,2]
[396231659,1764850244478,-500.0,0.00017127,2]
[396231660,1764850244488,-500.0,0.00017127,2]
[396231661,1764850244498,-500.0,0.00017127,2]
[396231662,1764850244507,-500.0,0.00017137,2]